[Event "Early-Titled-Tuesday-Blitz-February-13-2024"]
[Site "Chess.com"]
[Date "2024.02.13"]
[Round "7"]
[White "Beca95"]
[Black "edgarhay012"]
[Result "0-1"]
[WhiteElo "2901"]
[BlackElo "2635"]
[TimeControl "180+1"]
[EndTime "9:21:28 PST"]
[Termination "edgarhay012 won by checkmate"]

1. d4 {[%clk 0:03:00.9]} 1... Nf6 {[%clk 0:02:59.8]} 2. Nf3 {[%clk 0:02:59.1]}
2... e6 {[%clk 0:03:00.1]} 3. Bg5 {[%clk 0:02:59.4]} 3... d5 {[%clk 0:02:59]} 4.
e3 {[%clk 0:02:58.5]} 4... c5 {[%clk 0:02:58.6]} 5. Nbd2 {[%clk 0:02:58.2]} 5...
Nc6 {[%clk 0:02:57.9]} 6. c3 {[%clk 0:02:58.3]} 6... Be7 {[%clk 0:02:58]} 7. Bd3
{[%clk 0:02:58.1]} 7... Nd7 {[%clk 0:02:56.4]} 8. Bf4 {[%clk 0:02:57.6]} 8...
Bf6 {[%clk 0:02:54]} 9. Bb5 {[%clk 0:02:42.2]} 9... O-O {[%clk 0:02:50.7]} 10.
O-O {[%clk 0:02:40.4]} 10... e5 {[%clk 0:02:47]} 11. Bxc6 {[%clk 0:02:40.2]}
11... exf4 {[%clk 0:02:33.2]} 12. Bxd5 {[%clk 0:02:40]} 12... fxe3 {[%clk
0:02:33.6]} 13. fxe3 {[%clk 0:02:40.8]} 13... cxd4 {[%clk 0:02:29.9]} 14. exd4
{[%clk 0:02:40.6]} 14... Nc5 {[%clk 0:02:30.2]} 15. Bc4 {[%clk 0:02:40.5]} 15...
Ne6 {[%clk 0:02:29.8]} 16. Re1 {[%clk 0:02:39.5]} 16... a6 {[%clk 0:02:23.1]}
17. Ne4 {[%clk 0:02:38.4]} 17... Be7 {[%clk 0:02:23.2]} 18. Bb3 {[%clk
0:02:32.4]} 18... b5 {[%clk 0:02:16.6]} 19. Qd2 {[%clk 0:02:32.1]} 19... Ra7
{[%clk 0:02:12]} 20. Ne5 {[%clk 0:02:30.1]} 20... Qb6 {[%clk 0:02:09.8]} 21. Kh1
{[%clk 0:02:25.8]} 21... a5 {[%clk 0:02:03.9]} 22. Ng3 {[%clk 0:02:00.6]} 22...
Bg5 {[%clk 0:02:01.1]} 23. Qf2 {[%clk 0:01:56.9]} 23... b4 {[%clk 0:01:56.2]}
24. Ne4 {[%clk 0:01:46.3]} 24... Be7 {[%clk 0:01:52.9]} 25. Re3 {[%clk
0:01:43.5]} 25... bxc3 {[%clk 0:01:52]} 26. bxc3 {[%clk 0:01:44.4]} 26... a4
{[%clk 0:01:52]} 27. Bc4 {[%clk 0:01:38.4]} 27... Rc7 {[%clk 0:01:49.5]} 28. d5
{[%clk 0:01:21.1]} 28... Ng5 {[%clk 0:01:42.3]} 29. Qe2 {[%clk 0:01:00.4]} 29...
Nxe4 {[%clk 0:01:36.6]} 30. Rxe4 {[%clk 0:01:01.3]} 30... Bf6 {[%clk 0:01:36.5]}
31. Nc6 {[%clk 0:00:58.3]} 31... Qc5 {[%clk 0:01:10.8]} 32. Rf1 {[%clk
0:00:56.3]} 32... Bb7 {[%clk 0:00:52.3]} 33. Rxf6 {[%clk 0:00:20.6]} 33... gxf6
{[%clk 0:00:53.2]} 34. Bb5 {[%clk 0:00:20.7]} 34... Qxd5 {[%clk 0:00:35.7]} 35.
Ne7+ {[%clk 0:00:20.3]} 35... Rxe7 {[%clk 0:00:36.1]} 36. Rxe7 {[%clk
0:00:21.2]} 36... Rd8 {[%clk 0:00:34.2]} 37. h3 {[%clk 0:00:21.2]} 37... Qd1+
{[%clk 0:00:20.1]} 38. Kh2 {[%clk 0:00:18.5]} 38... Qxe2 {[%clk 0:00:20.2]} 39.
Rxe2 {[%clk 0:00:17.6]} 39... a3 {[%clk 0:00:20.8]} 40. c4 {[%clk 0:00:17.6]}
40... Bc8 {[%clk 0:00:13.6]} 41. Re3 {[%clk 0:00:17.6]} 41... Rd2 {[%clk
0:00:13.6]} 42. Rxa3 {[%clk 0:00:18.1]} 42... Bb7 {[%clk 0:00:13.4]} 43. Rg3+
{[%clk 0:00:18.8]} 43... Kf8 {[%clk 0:00:13.7]} 44. a4 {[%clk 0:00:19.4]} 44...
Ke7 {[%clk 0:00:13.3]} 45. Kg1 {[%clk 0:00:19.7]} 45... Kd6 {[%clk 0:00:12.7]}
46. Rg7 {[%clk 0:00:18.2]} 46... Kc5 {[%clk 0:00:12.7]} 47. g4 {[%clk 0:00:18]}
47... Rg2+ {[%clk 0:00:11.9]} 48. Kf1 {[%clk 0:00:18.2]} 48... Rh2 {[%clk
0:00:12.3]} 49. Rxh7 {[%clk 0:00:18.5]} 49... Be4 {[%clk 0:00:12.1]} 50. Rxf7
{[%clk 0:00:17.2]} 50... Kd4 {[%clk 0:00:11.6]} 51. Re7 {[%clk 0:00:13.7]} 51...
Rxh3 {[%clk 0:00:11.3]} 52. Kf2 {[%clk 0:00:13.4]} 52... Rf3+ {[%clk 0:00:10.5]}
53. Kg2 {[%clk 0:00:13.4]} 53... Ra3+ {[%clk 0:00:08.7]} 54. Kh2 {[%clk
0:00:13.2]} 54... Ra1 {[%clk 0:00:04.4]} 55. Re6 {[%clk 0:00:09.6]} 55... f5
{[%clk 0:00:04]} 56. g5 {[%clk 0:00:09.1]} 56... f4 {[%clk 0:00:03.8]} 57. g6
{[%clk 0:00:09.2]} 57... Rh1# {[%clk 0:00:03.5]} 0-1

[Event "Early-Titled-Tuesday-Blitz-February-13-2024"]
[Site "Chess.com"]
[Date "2024.02.13"]
[Round "7"]
[White "mbojan"]
[Black "Bigfish1995"]
[Result "0-1"]
[WhiteElo "2867"]
[BlackElo "3162"]
[TimeControl "180+1"]
[EndTime "9:21:31 PST"]
[Termination "Bigfish1995 won on time"]

1. d4 {[%clk 0:03:00.9]} 1... d5 {[%clk 0:02:58.2]} 2. Nf3 {[%clk 0:02:58.5]}
2... c5 {[%clk 0:02:56.2]} 3. c4 {[%clk 0:02:53.5]} 3... cxd4 {[%clk 0:02:44.6]}
4. cxd5 {[%clk 0:02:52.7]} 4... Nf6 {[%clk 0:02:27.4]} 5. Qa4+ {[%clk 0:02:49]}
5... Qd7 {[%clk 0:02:22.2]} 6. Qxd4 {[%clk 0:02:48.6]} 6... Qxd5 {[%clk
0:02:12]} 7. Nc3 {[%clk 0:02:47.3]} 7... Qxd4 {[%clk 0:02:04.1]} 8. Nxd4 {[%clk
0:02:48.2]} 8... a6 {[%clk 0:02:04]} 9. e4 {[%clk 0:02:22.7]} 9... e5 {[%clk
0:02:00]} 10. Nb3 {[%clk 0:02:18.3]} 10... Nc6 {[%clk 0:01:53.4]} 11. f3 {[%clk
0:02:17.8]} 11... Be6 {[%clk 0:01:53.1]} 12. Be3 {[%clk 0:01:14.7]} 12... Rc8
{[%clk 0:01:44.3]} 13. Nc5 {[%clk 0:00:43.2]} 13... Bxc5 {[%clk 0:01:07.7]} 14.
Bxc5 {[%clk 0:00:44.1]} 14... Nd7 {[%clk 0:01:07]} 15. Be3 {[%clk 0:00:37.9]}
15... O-O {[%clk 0:01:03.7]} 16. a3 {[%clk 0:00:30.9]} 16... Bb3 {[%clk
0:00:56.8]} 17. Be2 {[%clk 0:00:26.1]} 17... Nd4 {[%clk 0:00:50.7]} 18. Bd1
{[%clk 0:00:25.1]} 18... Nc5 {[%clk 0:00:50]} 19. Bxb3 {[%clk 0:00:21.8]} 19...
Ncxb3 {[%clk 0:00:44.2]} 20. Rd1 {[%clk 0:00:21.8]} 20... Nc2+ {[%clk
0:00:44.6]} 21. Kf2 {[%clk 0:00:21.9]} 21... Nxa3 {[%clk 0:00:43.8]} 22. Rd7
{[%clk 0:00:17]} 22... b5 {[%clk 0:00:41.4]} 23. Rhd1 {[%clk 0:00:04.3]} 23...
Nc4 {[%clk 0:00:29.2]} 24. Nd5 {[%clk 0:00:04.8]} 24... Kh8 {[%clk 0:00:26.6]}
25. h4 {[%clk 0:00:02.8]} 25... Nxb2 {[%clk 0:00:22.7]} 26. Rb1 {[%clk
0:00:03.1]} 26... Nc5 {[%clk 0:00:23]} 27. Bxc5 {[%clk 0:00:02.5]} 27... Nd3+
{[%clk 0:00:22.9]} 28. Ke3 {[%clk 0:00:03.2]} 28... Nxc5 {[%clk 0:00:23.2]} 29.
Ra7 {[%clk 0:00:04]} 29... f6 {[%clk 0:00:18.7]} 30. Rc1 {[%clk 0:00:03.6]}
30... Ne6 {[%clk 0:00:11.2]} 31. Rxc8 {[%clk 0:00:03.2]} 31... Rxc8 {[%clk
0:00:12.1]} 32. Rxa6 {[%clk 0:00:04]} 32... Nd4 {[%clk 0:00:12.4]} 33. Ra7
{[%clk 0:00:04]} 33... h5 {[%clk 0:00:10.3]} 34. Ne7 {[%clk 0:00:04.1]} 34...
Rc3+ {[%clk 0:00:08.2]} 35. Kf2 {[%clk 0:00:04.7]} 35... Kh7 {[%clk 0:00:07.7]}
36. Rb7 {[%clk 0:00:04.1]} 36... Rc2+ {[%clk 0:00:07.7]} 37. Kf1 {[%clk
0:00:04.4]} 37... Rb2 {[%clk 0:00:07]} 38. Nf5 {[%clk 0:00:03.6]} 38... Nxf5
{[%clk 0:00:05.8]} 39. exf5 {[%clk 0:00:04.5]} 39... b4 {[%clk 0:00:06.3]} 40.
Kg1 {[%clk 0:00:04.7]} 40... b3 {[%clk 0:00:06.8]} 41. Kh2 {[%clk 0:00:05.4]}
41... Rb1 {[%clk 0:00:07.1]} 42. Kg3 {[%clk 0:00:06]} 42... b2 {[%clk
0:00:07.4]} 43. Rb8 {[%clk 0:00:06.3]} 43... g6 {[%clk 0:00:07]} 44. Rb7+ {[%clk
0:00:06.4]} 44... Kh6 {[%clk 0:00:07.6]} 45. fxg6 {[%clk 0:00:07.1]} 45... Kxg6
{[%clk 0:00:08.5]} 46. Rb6 {[%clk 0:00:07.3]} 46... Kf7 {[%clk 0:00:08.2]} 47.
Rb7+ {[%clk 0:00:06.5]} 47... Ke6 {[%clk 0:00:08.2]} 48. Rb6+ {[%clk 0:00:05.7]}
48... Kd5 {[%clk 0:00:08.8]} 49. Kh2 {[%clk 0:00:05.5]} 49... f5 {[%clk
0:00:09.3]} 50. g4 {[%clk 0:00:05.4]} 50... e4 {[%clk 0:00:09.5]} 51. fxe4+
{[%clk 0:00:05.4]} 51... fxe4 {[%clk 0:00:10.2]} 52. g5 {[%clk 0:00:05.4]} 52...
e3 {[%clk 0:00:10.9]} 53. g6 {[%clk 0:00:06.1]} 53... Kc5 {[%clk 0:00:09.7]} 54.
Rb8 {[%clk 0:00:03]} 54... e2 {[%clk 0:00:09.6]} 55. g7 {[%clk 0:00:01.6]} 55...
Rh1+ {[%clk 0:00:10.2]} 56. Kxh1 {[%clk 0:00:01.6]} 56... e1=Q+ {[%clk
0:00:10.3]} 57. Kh2 {[%clk 0:00:01.5]} 57... Qe5+ {[%clk 0:00:10.3]} 58. Kh3
{[%clk 0:00:01.4]} 58... Qxb8 {[%clk 0:00:10.8]} 0-1

[Event "Early-Titled-Tuesday-Blitz-February-13-2024"]
[Site "Chess.com"]
[Date "2024.02.13"]
[Round "7"]
[White "Austen48"]
[Black "Licancabur"]
[Result "0-1"]
[WhiteElo "2240"]
[BlackElo "2438"]
[TimeControl "180+1"]
[EndTime "9:21:31 PST"]
[Termination "Licancabur won on time"]

1. d4 {[%clk 0:02:55.1]} 1... d5 {[%clk 0:02:57.9]} 2. c4 {[%clk 0:02:54.1]}
2... dxc4 {[%clk 0:02:57.4]} 3. Nf3 {[%clk 0:02:52.4]} 3... Nf6 {[%clk
0:02:57.1]} 4. e3 {[%clk 0:02:50.6]} 4... Bg4 {[%clk 0:02:55.3]} 5. Bxc4 {[%clk
0:02:49.9]} 5... e6 {[%clk 0:02:54.9]} 6. Qb3 {[%clk 0:02:46]} 6... Bxf3 {[%clk
0:02:53.6]} 7. gxf3 {[%clk 0:02:45]} 7... Nbd7 {[%clk 0:02:53.9]} 8. Nd2 {[%clk
0:02:38.9]} 8... c5 {[%clk 0:02:51.8]} 9. Qxb7 {[%clk 0:02:28.8]} 9... cxd4
{[%clk 0:02:37.8]} 10. exd4 {[%clk 0:02:28]} 10... Be7 {[%clk 0:02:11.6]} 11.
Rg1 {[%clk 0:02:23.2]} 11... O-O {[%clk 0:02:09.5]} 12. Qb3 {[%clk 0:02:12.1]}
12... Nb6 {[%clk 0:02:02.6]} 13. Qe3 {[%clk 0:02:02.1]} 13... Bb4 {[%clk
0:01:32.7]} 14. Bd3 {[%clk 0:01:30.2]} 14... Kh8 {[%clk 0:01:13]} 15. a3 {[%clk
0:01:26.7]} 15... Be7 {[%clk 0:00:58.2]} 16. Qg5 {[%clk 0:01:09.1]} 16... Rg8
{[%clk 0:00:53.1]} 17. Qh4 {[%clk 0:01:02.5]} 17... g6 {[%clk 0:00:38.3]} 18.
Nb3 {[%clk 0:00:50.8]} 18... Qd5 {[%clk 0:00:30.9]} 19. Bg5 {[%clk 0:00:30.3]}
19... Qxb3 {[%clk 0:00:30]} 20. Bxf6+ {[%clk 0:00:29.3]} 20... Bxf6 {[%clk
0:00:30.1]} 21. Qxf6+ {[%clk 0:00:29]} 21... Rg7 {[%clk 0:00:30.8]} 22. Rd1
{[%clk 0:00:24.3]} 22... Nd5 {[%clk 0:00:29.3]} 23. Qe5 {[%clk 0:00:12.5]} 23...
f6 {[%clk 0:00:27.9]} 24. Qe2 {[%clk 0:00:11.4]} 24... Nf4 {[%clk 0:00:25.1]}
25. Qc2 {[%clk 0:00:09.6]} 25... Qb6 {[%clk 0:00:16.6]} 26. Be4 {[%clk
0:00:08.4]} 26... Rd8 {[%clk 0:00:16.3]} 27. Kf1 {[%clk 0:00:07.8]} 27... Rgd7
{[%clk 0:00:16.1]} 28. d5 {[%clk 0:00:07.3]} 28... exd5 {[%clk 0:00:16]} 29. Bd3
{[%clk 0:00:06.6]} 29... Re7 {[%clk 0:00:16.1]} 30. Qc3 {[%clk 0:00:06.6]} 30...
Qd6 {[%clk 0:00:15.8]} 31. Qd4 {[%clk 0:00:06.3]} 31... Qe5 {[%clk 0:00:12.7]}
32. Qxe5 {[%clk 0:00:05.6]} 32... fxe5 {[%clk 0:00:12.9]} 33. b4 {[%clk
0:00:05.2]} 33... Rc7 {[%clk 0:00:12.9]} 34. Ke1 {[%clk 0:00:04]} 34... Rc3
{[%clk 0:00:12.8]} 35. Rg5 {[%clk 0:00:03.8]} 35... Rxd3 {[%clk 0:00:11.3]} 36.
Rxe5 {[%clk 0:00:02]} 36... Rxd1+ {[%clk 0:00:08.9]} 37. Kxd1 {[%clk 0:00:02.5]}
37... Nd3 {[%clk 0:00:08.3]} 38. Re7 {[%clk 0:00:01.2]} 38... a6 {[%clk
0:00:07.4]} 39. Ke2 {[%clk 0:00:01.1]} 39... Nf4+ {[%clk 0:00:05.3]} 40. Kd2
{[%clk 0:00:01.6]} 40... d4 {[%clk 0:00:05.3]} 41. Ra7 {[%clk 0:00:01.5]} 41...
Rd6 {[%clk 0:00:05.2]} 42. a4 {[%clk 0:00:01.4]} 42... d3 {[%clk 0:00:05.5]} 43.
b5 {[%clk 0:00:01.4]} 43... axb5 {[%clk 0:00:06]} 44. axb5 {[%clk 0:00:01.6]}
44... Rb6 {[%clk 0:00:06.5]} 45. Ra8+ {[%clk 0:00:02.2]} 45... Kg7 {[%clk
0:00:05.5]} 46. Ra7+ {[%clk 0:00:02.8]} 46... Kh6 {[%clk 0:00:05.3]} 47. Rf7
{[%clk 0:00:02.6]} 47... g5 {[%clk 0:00:04.3]} 48. h4 {[%clk 0:00:01]} 48...
Rxb5 {[%clk 0:00:03.1]} 49. hxg5+ {[%clk 0:00:01.7]} 49... Kxg5 {[%clk
0:00:03.6]} 50. Rg7+ {[%clk 0:00:01.8]} 50... Kf6 {[%clk 0:00:03.2]} 0-1

[Event "Early-Titled-Tuesday-Blitz-February-13-2024"]
[Site "Chess.com"]
[Date "2024.02.13"]
[Round "7"]
[White "DanielDardha2005"]
[Black "wqws"]
[Result "0-1"]
[WhiteElo "2896"]
[BlackElo "2674"]
[TimeControl "180+1"]
[EndTime "9:21:34 PST"]
[Termination "wqws won by resignation"]

1. d4 {[%clk 0:03:00]} 1... Nf6 {[%clk 0:02:59.9]} 2. Bg5 {[%clk 0:02:59.3]}
2... Ne4 {[%clk 0:02:59.1]} 3. h4 {[%clk 0:02:59.2]} 3... c5 {[%clk 0:02:54.4]}
4. dxc5 {[%clk 0:02:59.1]} 4... Nxg5 {[%clk 0:02:52.6]} 5. hxg5 {[%clk
0:02:58.3]} 5... Qa5+ {[%clk 0:02:53.2]} 6. Nd2 {[%clk 0:02:58.3]} 6... Qxc5
{[%clk 0:02:53.9]} 7. g6 {[%clk 0:02:57.9]} 7... fxg6 {[%clk 0:02:52]} 8. e3
{[%clk 0:02:58.1]} 8... Nc6 {[%clk 0:02:51.7]} 9. Ngf3 {[%clk 0:02:57.7]} 9...
d5 {[%clk 0:02:42.7]} 10. Bd3 {[%clk 0:02:44.9]} 10... Bf5 {[%clk 0:02:41.9]}
11. Bxf5 {[%clk 0:02:44.9]} 11... gxf5 {[%clk 0:02:42.4]} 12. Nh4 {[%clk
0:02:45.3]} 12... O-O-O {[%clk 0:02:36.4]} 13. Nxf5 {[%clk 0:02:44.7]} 13... g6
{[%clk 0:02:35.2]} 14. Ng3 {[%clk 0:02:41.6]} 14... Bg7 {[%clk 0:02:34.6]} 15.
c3 {[%clk 0:02:41.5]} 15... Ne5 {[%clk 0:02:23.7]} 16. Qe2 {[%clk 0:02:37.2]}
16... h5 {[%clk 0:02:18.8]} 17. Rh4 {[%clk 0:02:25.9]} 17... Bf6 {[%clk
0:02:15.9]} 18. Rb4 {[%clk 0:02:25.3]} 18... h4 {[%clk 0:02:11.8]} 19. Ngf1
{[%clk 0:02:24.6]} 19... a6 {[%clk 0:01:56.1]} 20. Nb3 {[%clk 0:02:10.1]} 20...
Qc7 {[%clk 0:01:25.2]} 21. O-O-O {[%clk 0:02:07.7]} 21... Nc6 {[%clk 0:01:21.6]}
22. Rg4 {[%clk 0:02:07]} 22... g5 {[%clk 0:01:18.2]} 23. Kb1 {[%clk 0:02:06.4]}
23... Kb8 {[%clk 0:01:16.9]} 24. Nfd2 {[%clk 0:02:05.5]} 24... e5 {[%clk
0:01:11.5]} 25. Ra4 {[%clk 0:02:03.3]} 25... Be7 {[%clk 0:01:03.7]} 26. e4
{[%clk 0:01:54.9]} 26... d4 {[%clk 0:01:00.6]} 27. Rc4 {[%clk 0:01:52.4]} 27...
b5 {[%clk 0:00:52.5]} 28. Rxc6 {[%clk 0:01:26.1]} 28... Qxc6 {[%clk 0:00:52.4]}
29. cxd4 {[%clk 0:01:26.6]} 29... exd4 {[%clk 0:00:52.1]} 30. Nf3 {[%clk
0:01:26.6]} 30... d3 {[%clk 0:00:52.1]} 31. Rxd3 {[%clk 0:01:22.4]} 31... Rxd3
{[%clk 0:00:53]} 32. Qxd3 {[%clk 0:01:23.3]} 32... Rd8 {[%clk 0:00:45.1]} 33.
Qe2 {[%clk 0:01:08.9]} 33... Qc4 {[%clk 0:00:33]} 34. Qxc4 {[%clk 0:01:06.8]}
34... bxc4 {[%clk 0:00:33]} 35. Na5 {[%clk 0:01:07.7]} 35... Kc7 {[%clk
0:00:24.3]} 36. Nxc4 {[%clk 0:01:05.1]} 36... Rd1+ {[%clk 0:00:24.5]} 37. Kc2
{[%clk 0:01:02.7]} 37... Rf1 {[%clk 0:00:25.1]} 38. Ne3 {[%clk 0:01:02.9]} 38...
Rxf2+ {[%clk 0:00:25.4]} 39. Kd3 {[%clk 0:00:44.6]} 39... Bc5 {[%clk 0:00:22.2]}
40. Nd5+ {[%clk 0:00:42.8]} 40... Kb7 {[%clk 0:00:22.3]} 41. b4 {[%clk
0:00:38.6]} 41... Ba7 {[%clk 0:00:19.9]} 42. e5 {[%clk 0:00:37.5]} 42... h3
{[%clk 0:00:18.7]} 43. e6 {[%clk 0:00:29.6]} 43... hxg2 {[%clk 0:00:18.6]} 44.
Ng1 {[%clk 0:00:28.2]} 44... Kc6 {[%clk 0:00:17.4]} 45. e7 {[%clk 0:00:24.4]}
45... Kd7 {[%clk 0:00:17.5]} 46. a4 {[%clk 0:00:18.2]} 46... Rf1 {[%clk
0:00:16.3]} 47. Ne2 {[%clk 0:00:11.1]} 47... g1=Q {[%clk 0:00:15]} 48. Nxg1
{[%clk 0:00:11.4]} 48... Rxg1 {[%clk 0:00:15.9]} 49. b5 {[%clk 0:00:12.3]} 49...
axb5 {[%clk 0:00:16.5]} 50. axb5 {[%clk 0:00:13]} 50... Rd1+ {[%clk 0:00:16.6]}
51. Ke4 {[%clk 0:00:12.9]} 51... Rxd5 {[%clk 0:00:14.5]} 52. Kxd5 {[%clk
0:00:13.1]} 52... Kxe7 {[%clk 0:00:14.9]} 53. Ke5 {[%clk 0:00:13.5]} 53... Kd7
{[%clk 0:00:15.2]} 54. Kf5 {[%clk 0:00:13.2]} 54... Be3 {[%clk 0:00:15.2]} 55.
b6 {[%clk 0:00:13.9]} 55... Kc6 {[%clk 0:00:15.2]} 56. Ke4 {[%clk 0:00:14.4]}
56... Bf4 {[%clk 0:00:15.5]} 57. Kf5 {[%clk 0:00:14.1]} 57... Kxb6 {[%clk
0:00:15.7]} 0-1

[Event "Early-Titled-Tuesday-Blitz-February-13-2024"]
[Site "Chess.com"]
[Date "2024.02.13"]
[Round "7"]
[White "Karttunen"]
[Black "kids2010"]
[Result "0-1"]
[WhiteElo "2631"]
[BlackElo "2832"]
[TimeControl "180+1"]
[EndTime "9:21:34 PST"]
[Termination "kids2010 won by resignation"]

1. e4 {[%clk 0:03:00.9]} 1... c6 {[%clk 0:02:59.4]} 2. d4 {[%clk 0:03:00.7]}
2... d5 {[%clk 0:03:00.2]} 3. e5 {[%clk 0:03:01.1]} 3... Bf5 {[%clk 0:03:00.3]}
4. h4 {[%clk 0:03:00.9]} 4... h5 {[%clk 0:02:59.9]} 5. Bd3 {[%clk 0:03:00]} 5...
Bxd3 {[%clk 0:03:00.1]} 6. Qxd3 {[%clk 0:03:00.9]} 6... Qa5+ {[%clk 0:03:00.5]}
7. Nd2 {[%clk 0:03:00.3]} 7... e6 {[%clk 0:03:00.5]} 8. c4 {[%clk 0:02:53.6]}
8... Ne7 {[%clk 0:02:56.5]} 9. b3 {[%clk 0:02:51.2]} 9... Nf5 {[%clk 0:02:56.5]}
10. Ne2 {[%clk 0:02:51.1]} 10... Be7 {[%clk 0:02:55.4]} 11. O-O {[%clk
0:02:39.4]} 11... Nd7 {[%clk 0:02:50.2]} 12. a4 {[%clk 0:02:38.7]} 12... Nxh4
{[%clk 0:02:41]} 13. Ng3 {[%clk 0:02:36]} 13... g6 {[%clk 0:02:38.2]} 14. Ba3
{[%clk 0:02:26.7]} 14... Qd8 {[%clk 0:02:31.4]} 15. Bxe7 {[%clk 0:02:23.4]}
15... Qxe7 {[%clk 0:02:32.3]} 16. cxd5 {[%clk 0:02:19.6]} 16... cxd5 {[%clk
0:02:32.9]} 17. Rac1 {[%clk 0:02:19.3]} 17... Nf5 {[%clk 0:02:10.7]} 18. Nxf5
{[%clk 0:02:18.5]} 18... gxf5 {[%clk 0:02:10.8]} 19. Rc7 {[%clk 0:02:16.4]}
19... Rg8 {[%clk 0:02:01.9]} 20. Nf3 {[%clk 0:02:10.8]} 20... Rd8 {[%clk
0:01:48.5]} 21. Rxb7 {[%clk 0:02:05.1]} 21... h4 {[%clk 0:01:48.4]} 22. Kh2
{[%clk 0:02:00.1]} 22... f6 {[%clk 0:01:20.6]} 23. Re1 {[%clk 0:01:35.2]} 23...
Qg7 {[%clk 0:01:15]} 24. Nxh4 {[%clk 0:01:25.2]} 24... fxe5 {[%clk 0:01:09.6]}
25. dxe5 {[%clk 0:01:07.2]} 25... Qg5 {[%clk 0:01:06.2]} 26. g3 {[%clk
0:01:03.5]} 26... f4 {[%clk 0:01:04.3]} 27. Rxa7 {[%clk 0:00:38.5]} 27... Rg7
{[%clk 0:00:28]} 28. Re2 {[%clk 0:00:26.6]} 28... Kf8 {[%clk 0:00:23.4]} 29. Qf3
{[%clk 0:00:20.5]} 29... Nxe5 {[%clk 0:00:18]} 30. Rxe5 {[%clk 0:00:19.1]} 30...
Qxe5 {[%clk 0:00:18.7]} 31. Rxg7 {[%clk 0:00:13.3]} 31... Qxg7 {[%clk
0:00:16.9]} 32. Qxf4+ {[%clk 0:00:13.8]} 32... Kg8 {[%clk 0:00:17.7]} 33. Nf3
{[%clk 0:00:12.4]} 33... Rf8 {[%clk 0:00:18]} 34. Qe3 {[%clk 0:00:11.8]} 34...
Qh7+ {[%clk 0:00:17.9]} 35. Kg2 {[%clk 0:00:11.5]} 35... Qf5 {[%clk 0:00:17.3]}
36. a5 {[%clk 0:00:09.3]} 36... Ra8 {[%clk 0:00:14.1]} 37. b4 {[%clk 0:00:09.3]}
37... Kf7 {[%clk 0:00:13.2]} 38. Qc5 {[%clk 0:00:08]} 38... Rf8 {[%clk
0:00:11.6]} 39. Qc7+ {[%clk 0:00:07.6]} 39... Kg8 {[%clk 0:00:11.5]} 40. Qc3
{[%clk 0:00:07.5]} 40... Qe4 {[%clk 0:00:11.8]} 41. Qe3 {[%clk 0:00:06.9]} 41...
Qxb4 {[%clk 0:00:11]} 42. Qxe6+ {[%clk 0:00:06.7]} 42... Rf7 {[%clk 0:00:10.8]}
43. Qxd5 {[%clk 0:00:07]} 43... Qb7 {[%clk 0:00:09.4]} 44. Qg5+ {[%clk
0:00:06.1]} 44... Kf8 {[%clk 0:00:09.2]} 45. Qh6+ {[%clk 0:00:06.5]} 45... Kg8
{[%clk 0:00:09.6]} 46. Qg6+ {[%clk 0:00:06.9]} 46... Kf8 {[%clk 0:00:10.3]} 47.
Qd3 {[%clk 0:00:07.1]} 47... Qc6 {[%clk 0:00:09.3]} 48. a6 {[%clk 0:00:07.5]}
48... Ra7 {[%clk 0:00:06.9]} 49. Qd4 {[%clk 0:00:07.5]} 49... Rxa6 {[%clk
0:00:06.7]} 50. Qf4+ {[%clk 0:00:07.9]} 50... Ke7 {[%clk 0:00:06.1]} 51. Qe5+
{[%clk 0:00:08.2]} 51... Kd7 {[%clk 0:00:06.2]} 52. Qd4+ {[%clk 0:00:08.4]}
52... Kc8 {[%clk 0:00:06.7]} 53. Qh8+ {[%clk 0:00:08.2]} 53... Kb7 {[%clk
0:00:07.1]} 54. Qb2+ {[%clk 0:00:08.2]} 54... Ka8 {[%clk 0:00:07.6]} 55. Qh8+
{[%clk 0:00:08.4]} 55... Ka7 {[%clk 0:00:08.2]} 56. Qd4+ {[%clk 0:00:08.2]}
56... Kb8 {[%clk 0:00:08.8]} 57. g4 {[%clk 0:00:08.3]} 57... Ra4 {[%clk
0:00:08.5]} 58. Qe5+ {[%clk 0:00:07.8]} 58... Kb7 {[%clk 0:00:08.7]} 59. Qg7+
{[%clk 0:00:07.7]} 59... Ka6 {[%clk 0:00:08.8]} 60. Kg3 {[%clk 0:00:06.2]} 60...
Re4 {[%clk 0:00:09.5]} 61. Qf6 {[%clk 0:00:06.1]} 61... Qxf6 {[%clk 0:00:09.2]}
0-1